bitfinex/quotes_SOLUSD_20230703
["timestamp","ask_amount","ask_price","bid_price","bid_amount"]
[1688376614019,55.0,19.389,19.383,21.822]
[1688376614237,21.818,19.388,19.383,21.822]
[1688376615121,21.818,19.388,19.38,341.41]
[1688376615319,21.818,19.388,19.383,21.822]
[1688376618531,55.0,19.387,19.382,21.823]
[1688376618841,21.82,19.386,19.382,21.823]
[1688376619141,55.0,19.385,19.382,21.823]
[1688376619321,76.821,19.385,19.382,21.823]
[1688376620033,55.0,19.385,19.382,21.823]
[1688376620420,76.821,19.385,19.382,21.823]
[1688376620620,55.0,19.385,19.382,21.823]
[1688376622840,76.821,19.385,19.375,56.206]
[1688376623044,76.821,19.385,19.376,20.0]
[1688376623337,76.821,19.385,19.378,21.828]
[1688376627218,76.821,19.385,19.377,21.829]
[1688376628047,76.821,19.385,19.374,21.832]
[1688376634251,76.821,19.385,19.371,151.9742]
[1688376635247,76.821,19.385,19.374,21.833]
[1688376659361,21.821,19.385,19.374,21.833]
[1688376660770,55.0,19.384,19.374,21.833]
[1688376661070,21.825,19.381,19.374,21.833]
[1688376662345,21.824,19.382,19.374,21.833]
[1688376663169,56.174,19.386,19.374,21.833]
[1688376663554,55.0,19.385,19.374,21.833]
[1688376664266,21.824,19.382,19.374,21.833]
[1688376671676,21.827,19.379,19.374,21.833]
[1688376675567,21.827,19.38,19.374,21.833]
[1688376679479,21.823,19.383,19.374,21.833]
[1688376679673,55.0,19.382,19.374,21.833]
[1688376680072,76.824,19.382,19.374,21.833]
[1688376683291,55.0,19.382,19.374,21.833]
[1688376683475,21.823,19.383,19.374,21.833]
[1688376690896,21.823,19.383,19.374,331.633]
[1688376700088,21.823,19.383,19.374,21.833]
[1688376703904,55.0,19.382,19.374,21.833]
[1688376704094,21.826,19.38,19.374,21.833]
[1688376706804,21.826,19.381,19.374,21.833]
[1688376707918,31.64,19.38,19.368,56.225]
[1688376708123,78.031,19.377,19.369,20.0]
[1688376708497,55.0,19.376,19.37,21.837]
[1688376708727,21.833,19.375,19.37,21.837]
[1688376708913,55.0,19.374,19.37,21.837]
[1688376709117,76.834,19.374,19.37,21.837]
[1688376710197,55.0,19.374,19.37,21.837]
[1688376710621,76.833,19.374,19.37,21.837]
[1688376711118,76.833,19.374,19.369,41.839]
[1688376711299,76.833,19.374,19.369,21.839]
[1688376713399,76.833,19.374,19.368,21.839]
[1688376720618,76.833,19.374,19.367,21.84]
[1688376723530,76.833,19.374,19.361,56.245]
[1688376723833,21.84,19.368,19.362,21.845]
[1688376724014,21.842,19.366,19.362,21.845]
[1688376727230,102.556,19.375,19.362,21.845]
[1688376727615,157.556,19.375,19.362,21.845]
[1688376728219,21.837,19.371,19.362,21.845]
[1688376728624,55.0,19.37,19.362,21.845]
[1688376728823,76.838,19.37,19.362,21.845]
[1688376730531,55.0,19.37,19.362,21.845]
[1688376731527,76.838,19.37,19.362,21.845]
[1688376733031,56.21,19.374,19.362,21.845]
[1688376733234,57.95619959,19.38,19.362,21.845]
[1688376733235,82.02675021,19.376,19.362,21.845]
[1688376734134,21.836,19.372,19.362,21.845]
[1688376736020,82.02675021,19.376,19.362,21.845]
[1688376736334,21.835,19.373,19.362,21.845]
[1688376736543,55.0,19.372,19.362,21.845]
[1688376736721,21.837,19.371,19.362,21.845]
[1688376738933,55.0,19.372,19.362,21.845]
[1688376739118,103.372253,19.379,19.363,10.83719922]
[1688376739314,21.827,19.38,19.373,21.834]
[1688376739533,21.826,19.381,19.373,78.046]
[1688376740624,55.0,19.38,19.373,78.046]
[1688376740825,76.826,19.38,19.373,78.046]
[1688376741425,55.0,19.38,19.373,78.046]
[1688376750352,55.0,19.381,19.373,78.046]
[1688376751051,76.825,19.381,19.373,78.046]
[1688376751253,55.0,19.381,19.373,78.046]
[1688376751639,76.825,19.381,19.373,78.046]
[1688376752149,55.0,19.381,19.373,78.046]
[1688376753141,76.825,19.381,19.373,78.046]
[1688376753947,55.0,19.381,19.373,78.046]
[1688376754159,76.825,19.381,19.373,78.046]
[1688376754362,55.0,19.381,19.373,78.046]
[1688376756268,76.825,19.381,19.373,78.046]
[1688376761368,76.825,19.381,19.366,96.0162]
[1688376761666,31.64,19.38,19.373,21.834]
[1688376761857,55.0,19.379,19.373,21.834]
[1688376762044,55.0,19.381,19.373,21.834]
[1688376762553,76.825,19.381,19.373,21.834]
[1688376772971,31.64,19.38,19.372,21.834]
[1688376773177,21.829,19.378,19.366,152.2472]
[1688376773363,21.829,19.378,19.368,21.839]
[1688376773563,55.0,19.377,19.367,21.84]
[1688376773872,21.833,19.374,19.367,21.84]
[1688376774162,21.836,19.372,19.367,21.84]
[1688376774372,55.0,19.373,19.367,21.84]
[1688376774373,21.838,19.37,19.367,21.84]
[1688376774569,55.0,19.373,19.367,21.84]
[1688376774757,21.837,19.371,19.367,21.84]
[1688376776663,21.837,19.371,19.358,52.2739843]
[1688376776869,55.0,19.37,19.36,61.61]
[1688376777071,21.841,19.368,19.363,21.845]
[1688376777262,55.0,19.367,19.36,61.61]
[1688376777567,55.0,19.367,19.363,21.845]
[1688376778857,21.837,19.371,19.363,21.845]
[1688376779059,55.0,19.37,19.363,21.845]
[1688376779263,21.836,19.372,19.363,21.845]
[1688376780466,55.0,19.371,19.363,21.845]
[1688376780672,21.839,19.369,19.363,21.845]
[1688376780861,55.0,19.368,19.363,21.845]
[1688376781062,21.839,19.369,19.363,21.845]
[1688376781263,21.838,19.37,19.363,21.845]
[1688376781463,21.837,19.371,19.363,21.845]
[1688376782963,55.0,19.37,19.363,21.845]
[1688376783163,21.839,19.369,19.363,21.845]
[1688376783672,21.841,19.367,19.363,21.845]
[1688376784876,21.841,19.367,19.358,56.254]
[1688376785081,21.841,19.367,19.359,50.0]
[1688376785082,55.0,19.366,19.359,50.0]
[1688376785384,21.844,19.365,19.361,21.846]
[1688376787484,55.0,19.366,19.361,21.846]
[1688376789081,21.844,19.365,19.361,21.846]
[1688376789281,76.843,19.366,19.361,21.846]
[1688376791576,55.0,19.366,19.361,21.846]
[1688376791781,76.842,19.366,19.361,21.846]
[1688376792071,21.846,19.372,19.361,78.093]
[1688376792266,21.837,19.371,19.361,78.093]
[1688376792686,21.836,19.372,19.361,78.093]
[1688376793484,55.0,19.371,19.361,78.093]
[1688376793671,76.837,19.371,19.361,78.093]
[1688376798274,56.207,19.377,19.361,78.093]
[1688376798473,55.0,19.376,19.361,387.893]
[1688376799205,21.834,19.374,19.361,387.893]
[1688376799495,76.835,19.373,19.361,387.893]
[1688376801694,21.835,19.373,19.361,387.893]
[1688376802003,56.202,19.377,19.361,387.893]
[1688376802206,55.0,19.376,19.361,387.893]
[1688376802973,21.834,19.373,19.361,387.893]
[1688376804170,21.839,19.369,19.361,78.093]
[1688376811799,55.0,19.368,19.361,78.093]
[1688376812098,76.84,19.368,19.361,78.093]
[1688376812301,21.836,19.371,19.361,78.093]
[1688376812689,21.836,19.372,19.361,78.093]
[1688376815187,21.834,19.374,19.361,387.893]
[1688376820500,55.0,19.373,19.361,387.893]
[1688376820804,21.838,19.37,19.361,78.093]
[1688376825092,55.0,19.369,19.361,78.093]
[1688376825394,55.0,19.369,19.361,21.846]
[1688376825395,21.841,19.367,19.361,21.846]
[1688376825606,21.843,19.365,19.361,21.846]
[1688376826203,55.0,19.366,19.361,21.846]
[1688376826406,76.842,19.366,19.361,21.846]
[1688376826805,55.0,19.366,19.361,21.846]
[1688376827306,76.842,19.366,19.361,21.846]
[1688376828007,55.0,19.366,19.361,21.846]
[1688376828208,76.842,19.366,19.361,21.846]
[1688376828714,55.0,19.366,19.361,21.846]
[1688376830210,55.0,19.366,19.36,56.248]
[1688376830211,179.444,19.366,19.35,341.44]
[1688376830408,76.842,19.366,19.358,21.851]
[1688376831415,76.842,19.366,19.356,21.853]
[1688376831615,76.842,19.366,19.357,21.852]
[1688376835619,76.842,19.366,19.352,97.7967]
[1688376835801,76.842,19.366,19.354,21.854]
[1688376838419,102.94656348,19.366,19.354,21.854]
[1688376845228,102.94656348,19.366,19.352,154.0677]
[1688376845229,81.10456348,19.366,19.352,97.7967]
[1688376845422,102.94656348,19.366,19.354,21.854]
[1688376851929,102.94656348,19.366,19.354,78.121]
[1688376852235,76.842,19.366,19.354,78.121]
[1688376852930,21.842,19.366,19.354,78.121]
[1688376854130,21.847,19.362,19.354,78.121]
[1688376854331,55.0,19.361,19.354,78.121]
[1688376854546,76.848,19.361,19.354,78.121]
[1688376855321,21.848,19.361,19.354,78.121]
[1688376855527,55.0,19.36,19.354,78.121]
[1688376855735,21.846,19.363,19.354,78.121]
[1688376857029,55.0,19.362,19.354,78.121]
[1688376857227,21.849,19.36,19.354,78.121]
[1688376857425,55.0,19.359,19.354,78.121]
[1688376858546,76.851,19.359,19.354,21.855]
[1688376863024,76.851,19.359,19.353,21.856]
[1688376864022,76.851,19.359,19.349,56.28]
[1688376864218,76.851,19.359,19.352,21.857]
[1688376869240,21.851,19.359,19.352,21.857]
[1688376869448,21.848,19.361,19.352,21.857]
[1688376870729,76.849,19.36,19.352,21.857]
[1688376870944,55.0,19.36,19.352,21.857]
[1688376871446,76.849,19.36,19.352,21.857]
[1688376878751,108.489,19.36,19.352,21.857]
[1688376882356,21.848,19.361,19.352,21.857]
[1688376883650,76.85,19.36,19.352,21.857]
[1688376897156,133.1,19.36,19.352,21.857]
[1688376897463,133.1,19.36,19.351,21.858]
[1688376898254,164.74,19.36,19.351,21.858]
[1688376898965,133.1,19.36,19.351,21.858]
[1688376903371,20.0,19.359,19.338,309.8]
[1688376903570,21.856,19.354,19.345,56.291]
[1688376903759,21.856,19.354,19.345,78.156]
[1688376903954,55.0,19.353,19.345,21.865]
[1688376904164,21.859,19.351,19.345,21.865]
[1688376904470,55.0,19.35,19.345,21.865]
[1688376905071,55.0,19.351,19.345,21.865]
[1688376905663,21.859,19.352,19.345,21.865]
[1688376905870,55.0,19.351,19.345,21.865]
[1688376906376,76.859,19.351,19.345,21.865]
[1688376912372,21.859,19.351,19.345,21.865]
[1688376912670,21.853,19.357,19.345,21.865]
[1688376912877,21.852,19.358,19.35,31.64]
[1688376913061,102.62,19.363,19.352,21.857]
[1688376913262,21.85,19.359,19.352,21.857]
[1688376913461,21.85,19.359,19.352,78.13]
[1688376913965,55.0,19.358,19.352,78.13]
[1688376914158,55.0,19.359,19.352,78.13]
[1688376914766,21.85,19.36,19.352,78.13]
[1688376915773,21.848,19.361,19.352,78.13]
[1688376915980,55.0,19.36,19.352,78.13]
[1688376916571,55.0,19.361,19.352,78.13]
[1688376917379,76.848,19.361,19.352,78.13]
[1688376925889,21.846,19.363,19.352,78.13]
[1688376927382,55.0,19.362,19.352,78.13]
[1688376927986,76.845,19.363,19.352,78.13]
[1688376928187,25.80882053,19.367,19.352,78.13]
[1688376928394,76.842,19.367,19.352,78.13]
[1688376928990,55.0,19.367,19.352,78.13]
[1688376929190,42.47719922,19.37,19.352,387.93]
[1688376929495,21.841,19.367,19.352,387.93]
[1688376929698,21.84,19.369,19.36,31.64]
[1688376929879,21.838,19.37,19.364,21.844]
[1688376930081,21.836,19.371,19.364,78.082]
[1688376931802,55.0,19.37,19.364,78.082]
[1688376932385,55.0,19.371,19.364,78.082]
[1688376932587,76.835,19.372,19.364,78.082]
[1688376932903,21.831,19.376,19.364,78.082]
[1688376934392,55.0,19.377,19.364,78.082]
[1688376934588,42.477199,19.378,19.364,387.882]
[1688376934795,21.827,19.38,19.37,31.61]
[1688376934999,21.827,19.38,19.373,78.046]
[1688376935599,31.61,19.383,19.373,78.046]
[1688376935907,10.83719922,19.388,19.373,78.046]
[1688376936204,21.819,19.387,19.373,78.046]
[1688376936506,10.83719922,19.386,19.373,78.046]
[1688376936804,21.823,19.383,19.373,78.046]
[1688376936987,55.0,19.382,19.373,78.046]
[1688376937190,76.825,19.382,19.373,78.046]
[1688376937891,55.0,19.382,19.373,78.046]
[1688376938296,76.824,19.382,19.373,78.046]
[1688376938989,55.0,19.382,19.373,78.046]
[1688376939190,76.823,19.383,19.373,78.046]
[1688376941518,10.83719922,19.386,19.373,78.046]
[1688376941702,55.0,19.385,19.373,78.046]
[1688376942005,31.64,19.388,19.377,180.572]
[1688376942204,21.82,19.386,19.377,180.572]
[1688376942991,21.82,19.386,19.377,78.028]
[1688376944106,21.823,19.384,19.377,78.028]
[1688376944632,55.0,19.383,19.377,21.829]
[1688376944824,21.825,19.382,19.377,21.829]
[1688376945002,55.0,19.381,19.377,21.829]
[1688376945520,76.824,19.382,19.377,21.829]
[1688376950204,55.0,19.382,19.377,21.829]
[1688376951098,21.826,19.381,19.377,21.829]
[1688376951319,76.827,19.38,19.377,21.829]
[1688376951498,55.0,19.379,19.377,21.829]
[1688376951698,76.827,19.379,19.376,21.83]
[1688376951903,55.0,19.379,19.376,21.83]
[1688376952801,55.0,19.38,19.376,21.83]
[1688376954607,55.0,19.381,19.376,21.83]
[1688376955913,76.825,19.381,19.376,21.83]
[1688376956121,76.825,19.381,19.371,99.6999]
[1688376956318,55.0,19.381,19.376,21.83]
[1688376957520,55.0,19.382,19.376,21.83]
[1688376957923,55.0,19.383,19.376,21.83]
[1688376958421,55.0,19.385,19.376,21.83]
[1688376958422,76.823,19.384,19.376,21.83]
[1688376959021,55.0,19.385,19.376,21.83]
[1688376959203,31.64,19.39,19.376,21.83]
[1688376959405,464.7,19.408,19.377,20.0]
[1688376959406,10.83719922,19.394,19.377,20.0]
[1688376959602,31.64,19.4,19.382,78.009]
[1688376959905,122.428,19.399,19.382,78.009]
[1688376960111,21.81,19.395,19.382,78.009]
[1688376960415,76.137,19.399,19.382,163.5371]
[1688376960630,21.809,19.396,19.382,174.37429922]
[1688376961307,55.0,19.395,19.382,174.37429922]
[1688376961507,76.809,19.395,19.382,174.37429922]
[1688376961807,55.0,19.395,19.382,174.37429922]
[1688376962213,76.81,19.395,19.382,174.37429922]
[1688376970530,76.81,19.395,19.382,484.17429922]
[1688376971135,76.81,19.395,19.382,473.3371]
[1688376975828,21.809,19.396,19.382,484.17429922]
[1688376976023,76.81,19.401,19.389,77.978]
[1688376976024,21.808,19.397,19.389,77.978]
[1688376980636,25.7802618,19.406,19.389,77.978]
[1688376980637,102.377,19.409,19.39,341.44]
[1688376980947,21.801,19.403,19.395,77.954]
[1688376983434,21.8,19.404,19.395,77.954]
[1688376983835,76.117,19.409,19.395,77.954]
[1688376984034,10.83719922,19.412,19.4,31.61]
[1688376984035,66.93719922,19.412,19.4,31.61]
[1688376984239,56.094,19.414,19.403,21.8]
[1688376985030,21.792,19.411,19.403,21.8]
[1688376985437,21.79,19.412,19.403,21.8]
[1688376985737,21.789,19.413,19.403,21.8]
[1688376985921,21.789,19.414,19.403,21.8]
[1688376986824,76.789,19.413,19.403,21.8]
[1688376987031,56.126,19.417,19.403,21.8]
[1688376987230,56.071,19.422,19.403,331.6]
[1688376987450,56.071,19.422,19.413,21.788]
[1688376987629,56.126,19.424,19.408,102.378]
[1688376987826,56.126,19.424,19.412,21.789]
[1688376987827,31.64,19.42,19.412,21.789]
[1688376988649,26.14257026,19.429,19.412,21.789]
[1688376988950,20.0,19.428,19.412,21.789]
[1688376989426,20.0,19.429,19.412,21.789]
[1688376989627,31.64,19.428,19.412,21.789]
[1688376990040,55.0,19.427,19.412,21.789]
[1688376991134,31.64,19.428,19.412,21.789]
[1688376992445,10.83719922,19.437,19.412,21.789]
[1688376992652,20.0,19.436,19.412,21.789]
[1688376992947,20.0,19.436,19.419,180.174]
[1688376993337,23.0,19.439,19.419,180.174]
[1688376993752,103.091999,19.436,19.419,180.174]
[1688376993957,20.0,19.435,19.419,180.174]
[1688376994134,75.0,19.435,19.419,180.174]
[1688376996537,75.0,19.435,19.419,77.857]
[1688376998156,75.0,19.435,19.419,21.781]
[1688376998539,10.83719922,19.434,19.419,21.781]
[1688376998756,75.0,19.433,19.419,21.781]
[1688376998959,180.063,19.432,19.418,21.783]
[1688376999154,158.45,19.43,19.413,56.095]
[1688376999361,180.129,19.425,19.416,21.785]
[1688376999547,55.0,19.424,19.416,21.785]
[1688376999751,21.779,19.422,19.416,21.785]
[1688377000061,21.782,19.42,19.416,21.785]
[1688377000357,55.0,19.419,19.416,21.785]
[1688377001141,55.0,19.423,19.416,21.785]
[1688377001142,21.778,19.423,19.416,21.785]
[1688377002567,21.78,19.421,19.416,21.785]
[1688377002749,55.0,19.42,19.416,21.785]
[1688377003344,76.781,19.42,19.416,21.785]
[1688377003543,55.0,19.42,19.416,21.785]
[1688377004043,76.782,19.42,19.416,21.785]
[1688377004368,55.0,19.42,19.416,21.785]
[1688377004752,76.78,19.421,19.416,21.785]
[1688377004950,55.0,19.421,19.416,21.785]
[1688377005155,76.78,19.421,19.416,21.785]
[1688377008249,21.779,19.422,19.416,21.785]
[1688377008544,21.779,19.423,19.416,21.785]
[1688377009562,55.0,19.422,19.416,21.785]
[1688377009761,21.781,19.421,19.416,21.785]
[1688377009974,55.0,19.42,19.416,21.785]
[1688377010161,76.781,19.42,19.416,21.785]
[1688377011080,55.0,19.42,19.416,21.785]
[1688377011368,21.781,19.42,19.415,21.786]
[1688377011579,21.781,19.42,19.411,56.099]
[1688377012655,21.784,19.418,19.415,21.786]
[1688377012857,55.0,19.417,19.415,21.786]
[1688377013566,55.0,19.418,19.415,21.786]
[1688377014755,55.0,19.419,19.415,21.786]
[1688377015352,56.063,19.424,19.415,21.786]
[1688377015353,21.778,19.424,19.415,21.786]
[1688377017674,55.0,19.423,19.415,21.786]
[1688377017975,21.779,19.422,19.415,21.786]
[1688377018178,55.0,19.421,19.415,21.786]
[1688377019874,76.78,19.421,19.415,21.786]
[1688377020380,20.0,19.42,19.4,493.69272512]
[1688377020574,21.787,19.415,19.406,77.912]
[1688377020964,21.787,19.415,19.406,21.797]
[1688377020965,55.0,19.414,19.406,21.797]
[1688377021162,21.791,19.412,19.404,93.0485]
[1688377021563,55.0,19.411,19.404,93.0485]
[1688377021766,21.794,19.409,19.404,93.0485]
[1688377021965,55.0,19.408,19.4,21.803]
[1688377022168,21.797,19.406,19.394,56.149]
[1688377022471,21.801,19.403,19.396,21.808]
[1688377023066,55.0,19.402,19.396,21.808]
[1688377023265,21.803,19.401,19.396,21.808]
[1688377024076,21.802,19.402,19.396,21.808]
[1688377024374,21.803,19.401,19.396,21.808]
[1688377026760,21.803,19.401,19.395,21.809]
[1688377026968,55.0,19.4,19.393,93.0485]
[1688377027271,21.806,19.398,19.393,93.0485]
[1688377028182,21.806,19.398,19.393,114.8595]
[1688377028881,55.0,19.397,19.393,93.0485]
[1688377029178,21.808,19.396,19.393,114.8595]
[1688377029359,21.808,19.396,19.393,21.811]
[1688377030568,21.808,19.396,19.385,10.83719922]
[1688377030764,21.812,19.393,19.388,21.817]
[1688377031283,21.812,19.393,19.387,21.817]
[1688377031464,21.812,19.393,19.386,21.819]
[1688377031781,21.812,19.393,19.38,341.32]
[1688377031782,21.812,19.393,19.384,21.821]
[1688377031979,21.815,19.39,19.384,21.821]
[1688377033382,21.815,19.39,19.383,98.5775]
[1688377033683,55.0,19.389,19.383,98.5775]
[1688377033980,180.478,19.388,19.378,21.828]
[1688377034283,21.823,19.384,19.377,21.829]
[1688377037984,55.0,19.383,19.374,98.5775]
[1688377038279,21.826,19.381,19.376,21.83]
[1688377041188,21.826,19.381,19.375,21.831]
[1688377042600,21.826,19.381,19.374,98.5775]
[1688377043107,21.826,19.381,19.373,21.833]
[1688377043390,21.828,19.378,19.373,21.833]
[1688377044474,21.828,19.378,19.372,21.835]
[1688377044977,55.0,19.377,19.372,21.835]
[1688377045178,21.831,19.376,19.372,21.835]
[1688377047590,55.0,19.375,19.368,93.6722]
[1688377047781,21.834,19.373,19.369,21.838]
[1688377047986,21.834,19.373,19.368,115.5112]
[1688377048379,21.832,19.376,19.368,115.5112]
[1688377048584,21.83,19.377,19.368,115.5112]
[1688377048884,21.829,19.378,19.368,115.5112]
[1688377050594,102.524,19.383,19.368,115.5112]
[1688377050783,21.829,19.378,19.368,115.5112]
[1688377051490,55.0,19.377,19.368,115.5112]
[1688377051682,21.833,19.375,19.368,115.5112]
[1688377054298,21.831,19.376,19.368,115.5112]
[1688377054597,21.832,19.376,19.368,21.839]
[1688377058685,102.524,19.383,19.368,21.839]
[1688377058686,102.514,19.383,19.37,31.61]
[1688377058882,21.828,19.379,19.372,78.048]
[1688377059193,21.827,19.38,19.372,78.048]
[1688377060090,55.0,19.379,19.372,78.048]
[1688377061695,55.0,19.38,19.372,78.048]
[1688377063493,76.827,19.38,19.372,78.048]
[1688377063800,133.018,19.38,19.372,21.834]
[1688377064992,76.827,19.38,19.372,21.834]
[1688377071385,55.0,19.38,19.372,21.834]
[1688377072283,76.826,19.38,19.372,21.834]
[1688377075898,112.365,19.384,19.372,21.834]
[1688377076103,56.184,19.384,19.372,21.834]
[1688377076300,56.17,19.388,19.372,21.834]
[1688377076600,21.821,19.385,19.372,21.834]
[1688377076800,31.82,19.39,19.372,21.834]
[1688377077002,41.817,19.389,19.372,21.834]
[1688377077200,41.817,19.389,19.372,32.67119922]
[1688377077396,77.989,19.387,19.372,32.67119922]
[1688377077698,21.819,19.387,19.372,32.67119922]
[1688377078613,21.819,19.387,19.377,78.029]
[1688377080002,55.0,19.386,19.377,78.029]
[1688377080212,21.822,19.384,19.377,78.029]
[1688377083705,21.821,19.385,19.377,78.029]
[1688377085905,21.821,19.385,19.377,21.829]
[1688377086112,55.0,19.384,19.377,21.829]
[1688377086414,21.824,19.382,19.377,21.829]
[1688377087811,55.0,19.381,19.377,21.829]
[1688377089124,76.826,19.381,19.377,21.829]
[1688377091517,55.0,19.381,19.377,21.829]
[1688377091817,76.825,19.381,19.377,21.829]
[1688377092220,76.825,19.381,19.373,99.2363]
[1688377092518,76.825,19.381,19.37,134.309]
[1688377093134,76.825,19.381,19.374,21.832]
[1688377097724,21.828,19.378,19.372,21.834]
[1688377097915,21.831,19.376,19.372,21.834]
[1688377098312,55.0,19.375,19.372,21.834]
[1688377099521,55.0,19.376,19.372,21.834]
[1688377099913,21.826,19.381,19.372,21.834]
[1688377100121,56.175,19.386,19.372,21.834]
[1688377100436,21.824,19.382,19.372,21.834]
[1688377100732,21.824,19.383,19.372,21.834]
[1688377102122,55.0,19.382,19.372,21.834]
[1688377102432,21.823,19.384,19.372,21.834]
[1688377102433,55.0,19.383,19.372,21.834]
[1688377102925,76.823,19.383,19.372,21.834]
[1688377103430,55.0,19.383,19.372,21.834]
[1688377104127,76.823,19.383,19.372,21.834]
[1688377124726,361.45,19.402,19.372,21.834]
[1688377124727,31.73,19.4,19.372,21.834]
[1688377124934,77.97,19.392,19.38,31.68]
[1688377125242,77.97,19.392,19.383,21.822]
[1688377125633,21.813,19.392,19.383,21.822]
[1688377126425,158.606,19.394,19.383,21.822]
[1688377126426,21.815,19.39,19.383,21.822]
[1688377126626,55.0,19.389,19.383,21.822]
[1688377128055,21.813,19.392,19.383,124.334]
[1688377129357,55.0,19.391,19.383,124.334]
[1688377130133,21.812,19.393,19.383,124.334]
[1688377130453,56.14,19.398,19.383,124.334]
[1688377131140,21.812,19.393,19.383,124.334]
[1688377131731,55.0,19.392,19.383,124.334]
[1688377132956,21.812,19.393,19.383,124.334]
[1688377132957,21.81,19.395,19.383,124.334]
[1688377133252,21.808,19.397,19.383,124.334]
[1688377133450,55.0,19.396,19.384,90.3872]
[1688377133653,55.0,19.396,19.387,180.475]
[1688377134037,76.808,19.396,19.387,180.475]
[1688377142245,76.808,19.396,19.387,21.818]
[1688377148164,21.808,19.396,19.387,21.818]
[1688377149543,21.812,19.393,19.387,21.818]
[1688377149752,21.814,19.391,19.387,21.818]
[1688377150051,21.814,19.392,19.387,21.818]
[1688377150250,55.0,19.391,19.387,21.818]
[1688377150468,76.814,19.391,19.387,21.818]
[1688377151370,55.0,19.391,19.387,21.818]
[1688377152676,21.811,19.394,19.387,21.818]
[1688377152971,55.0,19.393,19.387,21.818]
[1688377153766,55.0,19.394,19.387,21.818]
[1688377155288,76.811,19.394,19.387,21.818]
[1688377158386,76.81,19.394,19.387,21.818]
[1688377165196,55.0,19.394,19.387,21.818]